[Event "9e Open International de Porticcio"]
[Site "Porticcio, France"]
[Date "2024.07.03"]
[Round "7.4"]
[White "Hamdouchi, Hicham"]
[Black "Yankelevich, Lev"]
[Result "1/2-1/2"]
[TimeControl "1h30+30s/move"]
[WhiteElo "2527"]
[BlackElo "2416"]

1. e4 {[%clk 01:30:58]} {[%emt 00:00:01]} e5 {[%clk 01:30:43]} {[%emt
00:00:17]} 2. Nf3 {[%clk 01:31:08]} {[%emt 00:00:20]} Nf6 {[%clk 01:30:22]}
{[%emt 00:00:52]} 3. d4 {[%clk 01:29:08]} {[%emt 00:02:30]} Nxe4 {[%clk
01:30:42]} {[%emt 00:00:10]} 4. dxe5 {[%clk 01:29:30]} {[%emt 00:00:09]} d5
{[%clk 01:30:44]} {[%emt 00:00:27]} 5. Nbd2 {[%clk 01:29:53]} {[%emt 00:00:07]}
Qd7 {[%clk 01:30:14]} {[%emt 00:01:00]} 6. Bd3 {[%clk 01:28:10]} {[%emt
00:02:13]} Nc5 {[%clk 01:29:53]} {[%emt 00:00:51]} 7. Be2 {[%clk 01:28:18]}
{[%emt 00:00:22]} Ne6 {[%clk 01:30:09]} {[%emt 00:00:14]} 8. Nf1 {[%clk
01:25:11]} {[%emt 00:03:36]} c5 {[%clk 01:27:00]} {[%emt 00:03:40]} 9. Ng3
{[%clk 01:23:34]} {[%emt 00:02:07]} Nc6 {[%clk 01:27:05]} {[%emt 00:00:25]} 10.
O-O {[%clk 01:22:48]} {[%emt 00:01:15]} h6 {[%clk 01:20:38]} {[%emt 00:06:57]}
11. c3 {[%clk 01:14:05]} {[%emt 00:09:13]} b6 {[%clk 01:20:35]} {[%emt
00:00:33]} 12. a3 {[%clk 01:08:24]} {[%emt 00:06:11]} Bb7 {[%clk 01:19:43]}
{[%emt 00:01:22]} 13. b4 {[%clk 01:07:25]} {[%emt 00:01:29]} O-O-O {[%clk
01:17:11]} {[%emt 00:03:02]} 14. Bb5 {[%clk 01:04:31]} {[%emt 00:03:24]} Qc7
{[%clk 01:16:20]} {[%emt 00:01:21]} 15. Qe2 {[%clk 01:00:26]} {[%emt 00:04:35]}
g5 {[%clk 00:49:38]} {[%emt 00:27:11]} 16. bxc5 {[%clk 00:55:45]} {[%emt
00:05:11]} Bxc5 {[%clk 00:47:31]} {[%emt 00:02:37]} 17. Nf5 {[%clk 00:55:34]}
{[%emt 00:00:41]} Ne7 {[%clk 00:39:36]} {[%emt 00:08:26]} 18. Nxe7+ {[%clk
00:52:07]} {[%emt 00:03:58]} Qxe7 {[%clk 00:39:38]} {[%emt 00:00:27]} 19. Rd1
{[%clk 00:49:29]} {[%emt 00:03:08]} f6 {[%clk 00:30:41]} {[%emt 00:09:27]} 20.
a4 {[%clk 00:35:05]} {[%emt 00:14:54]} Nc7 {[%clk 00:29:33]} {[%emt 00:01:38]}
21. exf6 {[%clk 00:33:51]} {[%emt 00:01:44]} Qxf6 {[%clk 00:28:52]} {[%emt
00:01:12]} 22. Nd4 {[%clk 00:32:51]} {[%emt 00:01:29]} h5 {[%clk 00:27:16]}
{[%emt 00:02:06]} 23. Be3 {[%clk 00:31:23]} {[%emt 00:01:58]} g4 {[%clk
00:27:29]} {[%emt 00:00:17]} 24. Bd3 {[%clk 00:30:01]} {[%emt 00:01:52]} Ne6
{[%clk 00:26:37]} {[%emt 00:01:23]} 25. a5 {[%clk 00:26:38]} {[%emt 00:03:53]}
Rde8 {[%clk 00:22:42]} {[%emt 00:04:24]} 26. Qc2 {[%emt 00:00:38]} Kb8 {[%clk
00:22:01]} {[%emt 00:01:12]} 27. axb6 {[%clk 00:23:07]} {[%emt 00:03:54]} Bxb6
{[%clk 00:21:58]} {[%emt 00:00:32]} 28. Bf5 {[%clk 00:16:55]} {[%emt 00:06:41]}
Ng7 {[%clk 00:21:02]} {[%emt 00:01:25]} 29. Bd3 {[%clk 00:03:02]} {[%emt
00:14:23]} Ne6 {[%clk 00:18:18]} {[%emt 00:03:14]} 30. Bf5 {[%clk 00:03:20]}
{[%emt 00:00:13]} Ng7 {[%clk 00:18:44]} {[%emt 00:00:04]} 31. Bd3 {[%clk
00:03:12]} {[%emt 00:00:38]} 1/2-1/2

[Event "9e Open International de Porticcio"]
[Site "Porticcio, France"]
[Date "2024.07.03"]
[Round "7.6"]
[White "Unuk, Laura"]
[Black "Nevednichy, Vladislav"]
[Result "1/2-1/2"]
[TimeControl "1h30+30s/move"]
[WhiteElo "2324"]
[BlackElo "2471"]

1. d4 {[%clk 01:30:56]} {[%emt 00:00:03]} Nf6 {[%clk 01:30:45]} {[%emt
00:00:16]} 2. Nc3 {[%clk 01:30:41]} {[%emt 00:00:46]} d5 {[%clk 01:30:41]}
{[%emt 00:00:33]} 3. Bf4 {[%clk 01:31:02]} {[%emt 00:00:09]} a6 {[%clk
01:29:45]} {[%emt 00:01:27]} 4. e3 {[%clk 01:31:00]} {[%emt 00:00:31]} e6
{[%clk 01:29:57]} {[%emt 00:00:19]} 5. g4 {[%clk 01:28:10]} {[%emt 00:03:20]}
c5 {[%clk 01:17:57]} {[%emt 00:12:30]} 6. g5 {[%clk 01:25:43]} {[%emt
00:02:56]} Nfd7 {[%clk 01:18:12]} {[%emt 00:00:14]} 7. Bg2 {[%clk 01:21:56]}
{[%emt 00:04:18]} Nc6 {[%clk 01:17:38]} {[%emt 00:01:05]} 8. Nf3 {[%clk
01:05:07]} {[%emt 00:17:18]} Nb6 {[%clk 00:58:28]} {[%emt 00:19:40]} 9. h4
{[%clk 00:49:04]} {[%emt 00:16:33]} Bd6 {[%clk 00:53:12]} {[%emt 00:05:46]} 10.
dxc5 {[%clk 00:47:11]} {[%emt 00:02:24]} Bxc5 {[%clk 00:53:38]} {[%emt
00:00:03]} 11. h5 {[%clk 00:44:58]} {[%emt 00:02:43]} Qe7 {[%clk 00:50:23]}
{[%emt 00:03:45]} 12. h6 {[%clk 00:40:06]} {[%emt 00:05:22]} g6 {[%clk
00:45:28]} {[%emt 00:05:25]} 13. Ne5 {[%clk 00:37:55]} {[%emt 00:02:41]} O-O
{[%clk 00:31:01]} {[%emt 00:14:57]} 14. Ng4 {[%clk 00:33:40]} {[%emt 00:04:45]}
Rd8 {[%clk 00:29:59]} {[%emt 00:01:32]} 15. Nf6+ {[%clk 00:31:16]} {[%emt
00:02:54]} Kh8 {[%clk 00:30:26]} {[%emt 00:00:02]} 16. Qe2 {[%clk 00:29:22]}
{[%emt 00:02:26]} e5 {[%clk 00:20:34]} {[%emt 00:10:21]} 17. Bg3 {[%clk
00:25:59]} {[%emt 00:03:52]} Be6 {[%clk 00:20:57]} {[%emt 00:00:08]} 18. Rd1
{[%clk 00:12:16]} {[%emt 00:14:13]} Bb4 {[%clk 00:08:42]} {[%emt 00:12:46]} 19.
O-O {[%clk 00:08:34]} {[%emt 00:04:11]} Bxc3 {[%clk 00:08:58]} {[%emt
00:00:14]} 20. bxc3 {[%clk 00:08:59]} {[%emt 00:00:05]} Nd7 {[%clk 00:09:21]}
{[%emt 00:00:07]} 21. Nxd5 {[%clk 00:03:07]} {[%emt 00:06:22]} Bxd5 {[%clk
00:08:30]} {[%emt 00:01:21]} 22. Bxd5 {[%clk 00:02:13]} {[%emt 00:01:24]} Qxg5
{[%clk 00:08:54]} {[%emt 00:00:06]} 23. Bxf7 {[%clk 00:01:56]} {[%emt
00:00:47]} Nf6 {[%clk 00:08:51]} {[%emt 00:00:33]} 24. Rxd8+ {[%clk 00:01:15]}
{[%emt 00:01:11]} Rxd8 {[%clk 00:09:17]} {[%emt 00:00:04]} 25. Rd1 {[%clk
00:01:28]} {[%emt 00:00:17]} Rf8 {[%clk 00:04:51]} {[%emt 00:04:56]} 26. Be6
{[%clk 00:01:40]} {[%emt 00:00:18]} Qxh6 {[%clk 00:04:35]} {[%emt 00:00:46]} 27.
Qc4 {[%clk 00:01:18]} {[%emt 00:00:51]} Qh5 {[%clk 00:03:02]} {[%emt 00:02:03]}
28. Rd2 {[%clk 00:01:04]} {[%emt 00:00:45]} Qf3 {[%clk 00:02:43]} {[%emt
00:00:48]} 29. Bd5 {[%clk 00:01:03]} {[%emt 00:00:31]} Nxd5 {[%clk 00:02:46]}
{[%emt 00:00:26]} 30. Qxd5 {[%clk 00:01:03]} {[%emt 00:00:30]} Qxd5 {[%clk
00:02:36]} {[%emt 00:00:40]} 31. Rxd5 {[%clk 00:01:29]} {[%emt 00:00:04]} Rf7
{[%clk 00:02:05]} {[%emt 00:01:01]} 32. Bxe5+ {[%clk 00:01:00]} {[%emt
00:01:00]} Nxe5 {[%clk 00:02:33]} {[%emt 00:00:01]} 33. Rxe5 {[%clk 00:01:25]}
{[%emt 00:00:05]} Rc7 {[%clk 00:02:59]} {[%emt 00:00:04]} 34. a4 {[%clk
00:01:43]} {[%emt 00:00:12]} Kg7 {[%clk 00:03:21]} {[%emt 00:00:09]} 35. Re6
{[%clk 00:01:47]} {[%emt 00:00:26]} h5 {[%clk 00:03:06]} {[%emt 00:00:45]} 36.
Rb6 {[%clk 00:01:29]} {[%emt 00:00:48]} Kh6 {[%clk 00:03:33]} {[%emt 00:00:03]}
37. Kg2 {[%clk 00:01:03]} {[%emt 00:00:56]} Kg5 {[%clk 00:03:55]} {[%emt
00:00:07]} 38. a5 {[%clk 00:01:03]} {[%emt 00:00:30]} Kf5 {[%clk 00:04:18]}
{[%emt 00:00:07]} 39. c4 {[%clk 00:00:34]} {[%emt 00:00:59]} g5 {[%clk
00:04:41]} {[%emt 00:00:06]} 40. c5 {[%clk 00:00:49]} {[%emt 00:00:15]} Rxc5
{[%clk 00:03:18]} {[%emt 00:01:54]} 41. Rxb7 {[%clk 00:01:15]} {[%emt
00:00:04]} Rxa5 {[%clk 00:03:44]} {[%emt 00:00:03]} 42. Rf7+ {[%clk 00:00:57]}
{[%emt 00:00:47]} Kg4 {[%clk 00:03:22]} {[%emt 00:00:51]} 43. f3+ {[%clk
00:00:44]} {[%emt 00:00:44]} Kh4 {[%clk 00:03:47]} {[%emt 00:00:04]} 44. Rc7
{[%clk 00:01:04]} {[%emt 00:00:11]} Rd5 {[%clk 00:03:41]} {[%emt 00:00:35]} 45.
Rc4+ {[%clk 00:00:48]} {[%emt 00:00:47]} g4 {[%clk 00:04:07]} {[%emt 00:00:04]}
46. fxg4 {[%clk 00:01:04]} {[%emt 00:00:14]} hxg4 {[%clk 00:04:34]} {[%emt
00:00:04]} 47. e4 {[%clk 00:01:17]} {[%emt 00:00:18]} Rd2+ {[%clk 00:04:52]}
{[%emt 00:00:11]} 48. Kf1 {[%clk 00:01:11]} {[%emt 00:00:36]} Kh3 {[%clk
00:03:24]} {[%emt 00:01:58]} 49. Rc6 {[%clk 00:00:56]} {[%emt 00:00:45]} a5
{[%clk 00:03:43]} {[%emt 00:00:12]} 50. e5 {[%clk 00:00:36]} {[%emt 00:00:50]}
Rd5 {[%clk 00:03:12]} {[%emt 00:01:01]} 51. Rh6+ {[%clk 00:00:41]} {[%emt
00:00:25]} Kg3 {[%clk 00:03:39]} {[%emt 00:00:03]} 52. e6 {[%clk 00:00:38]}
{[%emt 00:00:34]} Re5 {[%clk 00:04:01]} {[%emt 00:00:07]} 53. c4 {[%clk
00:00:36]} {[%emt 00:00:32]} a4 {[%clk 00:04:26]} {[%emt 00:00:05]} 54. e7
{[%clk 00:00:44]} {[%emt 00:00:22]} Rxe7 {[%clk 00:04:51]} {[%emt 00:00:05]} 55.
Ra6 {[%clk 00:01:08]} {[%emt 00:00:06]} Rf7+ {[%clk 00:05:10]} {[%emt
00:00:11]} 56. Ke1 {[%clk 00:00:57]} {[%emt 00:00:41]} Kh2 {[%clk 00:04:39]}
{[%emt 00:01:01]} 57. Rxa4 {[%clk 00:01:00]} {[%emt 00:00:27]} g3 {[%clk
00:05:01]} {[%emt 00:00:08]} 58. Ra8 {[%clk 00:00:57]} {[%emt 00:00:33]} g2
{[%clk 00:02:59]} {[%emt 00:02:32]} 59. Rh8+ {[%clk 00:01:19]} {[%emt
00:00:07]} Kg3 {[%clk 00:03:26]} {[%emt 00:00:03]} 60. Rg8+ {[%clk 00:01:44]}
{[%emt 00:00:05]} Kf3 {[%clk 00:03:54]} {[%emt 00:00:02]} 61. c5 {[%clk
00:00:46]} {[%emt 00:01:28]} Re7+ {[%clk 00:03:08]} {[%emt 00:01:16]} 62. Kd2
{[%clk 00:01:08]} {[%emt 00:00:08]} Re4 {[%clk 00:02:03]} {[%emt 00:01:35]} 63.
c6 {[%clk 00:00:35]} {[%emt 00:01:04]} Rd4+ {[%clk 00:02:17]} {[%emt 00:00:15]}
64. Ke1 {[%clk 00:00:46]} {[%emt 00:00:19]} Rc4 {[%clk 00:02:07]} {[%emt
00:00:40]} 65. Rf8+ {[%clk 00:01:00]} {[%emt 00:00:16]} Kg3 {[%clk 00:02:21]}
{[%emt 00:00:14]} 66. Rg8+ {[%clk 00:01:25]} {[%emt 00:00:07]} Kh2 {[%clk
00:02:47]} {[%emt 00:00:04]} 67. Rh8+ {[%clk 00:00:58]} {[%emt 00:00:57]} Kg1
{[%clk 00:02:36]} {[%emt 00:00:40]} 68. Rh6 {[%clk 00:01:24]} {[%emt 00:00:04]}
Re4+ {[%clk 00:02:49]} {[%emt 00:00:17]} 69. Kd2 {[%clk 00:01:50]} {[%emt
00:00:04]} Kf2 {[%clk 00:03:00]} {[%emt 00:00:18]} 70. Rf6 {[%clk 00:02:01]}
{[%emt 00:00:21]} Kg3 {[%clk 00:03:26]} {[%emt 00:00:03]} 71. Rg6+ {[%clk
00:02:15]} {[%emt 00:00:17]} Kf3 {[%clk 00:03:30]} {[%emt 00:00:24]} 72. Rf6+
{[%clk 00:02:02]} {[%emt 00:00:45]} Rf4 {[%clk 00:03:50]} {[%emt 00:00:10]} 73.
Rxf4+ {[%clk 00:02:13]} {[%emt 00:00:19]} Kxf4 {[%clk 00:04:18]} {[%emt
00:00:03]} 74. c7 {[%clk 00:02:40]} {[%emt 00:00:03]} g1=Q {[%clk 00:04:43]}
{[%emt 00:00:04]} 75. c8=Q {[%clk 00:03:05]} {[%emt 00:00:04]} Qe3+ {[%clk
00:05:05]} {[%emt 00:00:07]} 76. Kd1 {[%clk 00:03:32]} {[%emt 00:00:05]} Qf3+
{[%clk 00:05:26]} {[%emt 00:00:09]} 77. Kd2 {[%clk 00:03:57]} {[%emt 00:00:05]}
Qe3+ {[%clk 00:05:53]} {[%emt 00:00:02]} 78. Kd1 {[%clk 00:04:25]} {[%emt
00:00:03]} Qf3+ {[%clk 00:06:19]} {[%emt 00:00:03]} 79. Kd2 {[%clk 00:04:54]}
{[%emt 00:00:02]} Qe3+ {[%clk 00:06:38]} {[%emt 00:00:06]} 1/2-1/2

[Event "9e Open International de Porticcio"]
[Site "Porticcio, France"]
[Date "2024.07.03"]
[Round "7.7"]
[White "Kuru, Atilla"]
[Black "Druska, Juraj"]
[Result "1-0"]
[TimeControl "1h30+30s/move"]
[WhiteElo "2314"]
[BlackElo "2466"]

1. e4 {[%clk 01:27:21]} {[%emt 00:03:38]} e5 {[%clk 01:30:50]} {[%emt
00:00:10]} 2. Bc4 {[%clk 01:27:44]} {[%emt 00:00:07]} Nf6 {[%clk 01:30:01]}
{[%emt 00:01:20]} 3. Nc3 {[%clk 01:28:07]} {[%emt 00:00:07]} Nc6 {[%clk
01:24:37]} {[%emt 00:05:55]} 4. d3 {[%clk 01:28:32]} {[%emt 00:00:05]} Na5
{[%clk 01:23:17]} {[%emt 00:01:49]} 5. Qf3 {[%clk 01:28:57]} {[%emt 00:00:05]}
d6 {[%clk 01:19:31]} {[%emt 00:04:15]} 6. Nge2 {[%clk 01:27:16]} {[%emt
00:02:11]} Be7 {[%clk 01:12:01]} {[%emt 00:08:01]} 7. h3 {[%clk 01:25:47]}
{[%emt 00:01:58]} Nxc4 {[%clk 00:53:30]} {[%emt 00:19:01]} 8. dxc4 {[%clk
01:26:10]} {[%emt 00:00:08]} Be6 {[%clk 00:53:54]} {[%emt 00:00:05]} 9. b3
{[%clk 01:26:35]} {[%emt 00:00:05]} Nd7 {[%clk 00:53:22]} {[%emt 00:01:02]} 10.
Ng3 {[%clk 01:23:59]} {[%emt 00:03:05]} g6 {[%clk 00:52:29]} {[%emt 00:01:24]}
11. Bh6 {[%clk 01:19:59]} {[%emt 00:04:29]} Bg5 {[%clk 00:50:22]} {[%emt
00:02:38]} 12. Bxg5 {[%clk 01:20:16]} {[%emt 00:00:14]} Qxg5 {[%clk 00:50:50]}
{[%emt 00:00:02]} 13. h4 {[%clk 01:19:44]} {[%emt 00:01:01]} Qf6 {[%clk
00:48:09]} {[%emt 00:03:12]} 14. Nb5 {[%clk 01:19:11]} {[%emt 00:01:03]} Qd8
{[%clk 00:44:38]} {[%emt 00:03:59]} 15. Qe3 {[%clk 01:12:41]} {[%emt 00:07:02]}
a6 {[%clk 00:44:08]} {[%emt 00:01:01]} 16. Nc3 {[%clk 01:13:05]} {[%emt
00:00:05]} Qf6 {[%clk 00:41:06]} {[%emt 00:03:32]} 17. a4 {[%clk 01:11:18]}
{[%emt 00:02:17]} Qg7 {[%clk 00:40:08]} {[%emt 00:01:29]} 18. Nd5 {[%clk
01:03:22]} {[%emt 00:08:26]} Bxd5 {[%clk 00:40:27]} {[%emt 00:00:11]} 19. cxd5
{[%clk 01:02:40]} {[%emt 00:01:11]} f5 {[%clk 00:38:55]} {[%emt 00:02:01]} 20.
exf5 {[%clk 01:01:14]} {[%emt 00:01:56]} gxf5 {[%clk 00:38:33]} {[%emt
00:00:53]} 21. Nxf5 {[%clk 01:00:03]} {[%emt 00:01:41]} Qxg2 {[%clk 00:34:24]}
{[%emt 00:04:39]} 22. O-O-O {[%clk 01:00:26]} {[%emt 00:00:07]} Qg6 {[%clk
00:33:19]} {[%emt 00:01:35]} 23. Nd4 {[%clk 00:56:39]} {[%emt 00:04:16]} Nf6
{[%clk 00:30:24]} {[%emt 00:03:26]} 24. Nf3 {[%clk 00:48:13]} {[%emt 00:08:55]}
O-O-O {[%clk 00:16:30]} {[%emt 00:14:24]} 25. Rhg1 {[%clk 00:48:32]} {[%emt
00:00:11]} Ng4 {[%clk 00:16:01]} {[%emt 00:00:59]} 26. Qa7 {[%clk 00:48:22]}
{[%emt 00:00:39]} Qf5 {[%clk 00:12:08]} {[%emt 00:04:24]} 27. Nd2 {[%clk
00:48:30]} {[%emt 00:00:22]} Rhg8 {[%clk 00:09:11]} {[%emt 00:03:26]} 28. f3
{[%clk 00:47:59]} {[%emt 00:01:01]} Nf6 {[%clk 00:09:20]} {[%emt 00:00:22]} 29.
Qa8+ {[%clk 00:48:12]} {[%emt 00:00:18]} Kd7 {[%clk 00:09:49]} {[%emt
00:00:01]} 30. Qxb7 {[%clk 00:48:39]} {[%emt 00:00:03]} Qf4 {[%clk 00:09:43]}
{[%emt 00:00:35]} 31. Qc6+ {[%clk 00:48:32]} {[%emt 00:00:37]} Ke7 {[%clk
00:10:11]} {[%emt 00:00:01]} 32. Qxc7+ {[%clk 00:47:24]} {[%emt 00:01:39]} Nd7
{[%clk 00:10:10]} {[%emt 00:00:31]} 33. Qc4 {[%clk 00:47:27]} {[%emt 00:00:27]}
Qxc4 {[%clk 00:08:34]} {[%emt 00:02:06]} 34. Nxc4 {[%clk 00:47:43]} {[%emt
00:00:14]} Rdf8 {[%clk 00:08:57]} {[%emt 00:00:07]} 35. Rdf1 {[%clk 00:47:30]}
{[%emt 00:00:43]} Nf6 {[%clk 00:08:12]} {[%emt 00:01:15]} 36. Ne3 {[%clk
00:46:57]} {[%emt 00:01:03]} Nh5 {[%clk 00:08:33]} {[%emt 00:00:08]} 37. Rxg8
{[%clk 00:43:19]} {[%emt 00:04:09]} Rxg8 {[%clk 00:09:01]} 38. Kd2 {[%clk
00:43:03]} {[%emt 00:00:46]} Nf4 {[%clk 00:05:31]} {[%emt 00:04:01]} 39. b4
{[%clk 00:42:51]} {[%emt 00:00:42]} Kd7 {[%clk 00:05:06]} {[%emt 00:00:55]} 40.
c4 {[%clk 00:43:04]} {[%emt 00:00:16]} Kc7 {[%clk 00:04:49]} {[%emt 00:00:47]}
41. a5 {[%clk 00:42:56]} {[%emt 00:00:39]} Rg3 {[%clk 00:04:57]} {[%emt
00:00:22]} 42. b5 {[%clk 00:39:59]} {[%emt 00:03:27]} axb5 {[%clk 00:03:21]}
{[%emt 00:02:05]} 43. cxb5 {[%clk 00:40:28]} {[%emt 00:00:02]} Rh3 {[%clk
00:03:40]} {[%emt 00:00:10]} 44. Rg1 {[%clk 00:39:56]} {[%emt 00:01:02]} Rh2+
{[%clk 00:03:14]} {[%emt 00:00:56]} 45. Kd1 {[%clk 00:40:26]} Ra2 {[%clk
00:02:26]} {[%emt 00:01:19]} 46. Rg7+ {[%clk 00:40:49]} {[%emt 00:00:06]} Kb8
{[%clk 00:02:53]} {[%emt 00:00:03]} 47. a6 {[%clk 00:40:28]} {[%emt 00:00:51]}
Ka8 {[%clk 00:01:28]} {[%emt 00:01:55]} 48. Rxh7 {[%clk 00:39:56]} {[%emt
00:01:01]} Ra5 {[%clk 00:00:48]} {[%emt 00:01:11]} 49. Rb7 {[%clk 00:40:19]}
{[%emt 00:00:08]} e4 {[%clk 00:01:05]} {[%emt 00:00:12]} 50. fxe4 {[%clk
00:40:07]} {[%emt 00:00:42]} Ra1+ {[%clk 00:00:46]} {[%emt 00:00:50]} 51. Kd2
{[%clk 00:40:33]} {[%emt 00:00:04]} Ra2+ {[%clk 00:01:02]} {[%emt 00:00:13]} 52.
Nc2 {[%clk 00:40:59]} {[%emt 00:00:04]} Nxd5 {[%clk 00:01:18]} {[%emt
00:00:14]} 53. Rd7 {[%clk 00:40:25]} {[%emt 00:01:03]} Nb6 {[%clk 00:00:33]}
{[%emt 00:01:16]} 54. Rd8+ {[%clk 00:40:44]} {[%emt 00:00:10]} Ka7 {[%clk
00:01:02]} {[%emt 00:00:02]} 55. Kc3 {[%clk 00:40:48]} {[%emt 00:00:25]} 1-0

[Event "9e Open International de Porticcio"]
[Site "Porticcio, France"]
[Date "2024.07.03"]
[Round "7.8"]
[White "Rakotomaharo, Fy Antenaina"]
[Black "Ha, Yihan"]
[Result "1-0"]
[TimeControl "1h30+30s/move"]
[WhiteElo "2448"]
[BlackElo "2166"]

1. e4 {[%clk 01:26:13]} {[%emt 00:04:46]} c6 {[%clk 01:30:54]} {[%emt
00:00:06]} 2. d4 {[%clk 01:26:13]} {[%emt 00:00:30]} d5 {[%clk 01:31:19]}
{[%emt 00:00:05]} 3. e5 {[%clk 01:26:39]} {[%emt 00:00:04]} Bf5 {[%clk
01:31:41]} {[%emt 00:00:09]} 4. h4 {[%clk 01:27:03]} {[%emt 00:00:06]} h5
{[%clk 01:31:53]} {[%emt 00:00:17]} 5. c4 {[%clk 01:27:22]} {[%emt 00:00:12]}
e6 {[%clk 01:31:20]} {[%emt 00:01:03]} 6. Nc3 {[%clk 01:27:44]} {[%emt
00:00:08]} Ne7 {[%clk 01:30:44]} {[%emt 00:01:06]} 7. Nge2 {[%clk 01:27:35]}
{[%emt 00:00:39]} Nd7 {[%clk 01:22:08]} {[%emt 00:09:07]} 8. Ng3 {[%clk
01:26:40]} {[%emt 00:01:25]} Bg6 {[%clk 01:21:52]} {[%emt 00:00:46]} 9. Bg5
{[%clk 01:25:15]} {[%emt 00:01:55]} Qb6 {[%clk 01:20:32]} {[%emt 00:01:50]} 10.
Qd2 {[%clk 01:15:42]} {[%emt 00:10:03]} f6 {[%clk 01:17:22]} {[%emt 00:03:40]}
11. Be3 {[%clk 01:11:36]} {[%emt 00:04:35]} O-O-O {[%clk 01:13:19]} {[%emt
00:04:33]} 12. c5 {[%clk 01:05:19]} {[%emt 00:06:47]} Qc7 {[%clk 01:08:01]}
{[%emt 00:05:48]} 13. f4 {[%clk 01:05:21]} {[%emt 00:00:28]} Nf5 {[%clk
01:03:43]} {[%emt 00:04:48]} 14. Nxf5 {[%clk 01:03:14]} {[%emt 00:02:38]} Bxf5
{[%clk 01:04:00]} {[%emt 00:00:12]} 15. b4 {[%clk 01:03:06]} {[%emt 00:00:39]}
fxe5 {[%clk 00:58:40]} {[%emt 00:05:49]} 16. fxe5 {[%clk 01:02:50]} {[%emt
00:00:46]} Be7 {[%clk 00:57:19]} {[%emt 00:01:50]} 17. Bd3 {[%clk 00:55:13]}
{[%emt 00:08:07]} Rhf8 {[%clk 00:47:52]} {[%emt 00:09:56]} 18. O-O {[%clk
00:52:20]} {[%emt 00:03:23]} Bxd3 {[%clk 00:40:51]} {[%emt 00:07:31]} 19. Qxd3
{[%clk 00:52:43]} {[%emt 00:00:07]} Bxh4 {[%clk 00:40:00]} {[%emt 00:01:22]} 20.
Qg6 {[%clk 00:48:00]} {[%emt 00:05:13]} Nxe5 {[%clk 00:36:14]} {[%emt
00:04:16]} 21. dxe5 {[%clk 00:47:48]} {[%emt 00:00:43]} Qxe5 {[%clk 00:34:44]}
{[%emt 00:02:00]} 22. Qd3 {[%clk 00:48:03]} {[%emt 00:00:15]} Bf6 {[%clk
00:27:37]} {[%emt 00:07:37]} 23. Ne2 {[%clk 00:47:35]} {[%emt 00:00:58]} d4
{[%clk 00:23:24]} {[%emt 00:04:44]} 24. Bf4 {[%clk 00:46:05]} {[%emt 00:01:58]}
Qf5 {[%clk 00:23:14]} {[%emt 00:00:41]} 25. Qxf5 {[%clk 00:43:43]} {[%emt
00:02:53]} exf5 {[%clk 00:23:38]} {[%emt 00:00:06]} 26. Rad1 {[%clk 00:44:03]}
{[%emt 00:00:09]} Rfe8 {[%clk 00:22:06]} {[%emt 00:02:03]} 27. Nc1 {[%clk
00:43:58]} {[%emt 00:00:35]} Rd5 {[%clk 00:16:27]} {[%emt 00:06:08]} 28. Nd3
{[%clk 00:38:20]} {[%emt 00:06:09]} g5 {[%clk 00:14:50]} {[%emt 00:02:07]} 29.
Bd6 {[%clk 00:38:42]} {[%emt 00:00:07]} Re2 {[%clk 00:11:53]} {[%emt 00:03:27]}
30. b5 {[%clk 00:37:40]} {[%emt 00:01:33]} f4 {[%clk 00:11:09]} {[%emt
00:01:13]} 31. bxc6 {[%clk 00:37:23]} {[%emt 00:00:48]} bxc6 {[%clk 00:11:33]}
{[%emt 00:00:06]} 32. Bxf4 {[%clk 00:31:43]} {[%emt 00:06:10]} Be7 {[%clk
00:06:47]} {[%emt 00:05:16]} 33. Bh2 {[%clk 00:25:41]} {[%emt 00:06:32]} Bxc5
{[%clk 00:06:10]} {[%emt 00:01:07]} 34. Rc1 {[%clk 00:25:15]} {[%emt 00:00:56]}
Bb6 {[%clk 00:02:57]} {[%emt 00:03:43]} 35. Rxc6+ {[%clk 00:25:39]} {[%emt
00:00:07]} Kb7 {[%clk 00:02:37]} {[%emt 00:00:50]} 36. Rh6 {[%clk 00:25:52]}
{[%emt 00:00:16]} Rd7 {[%clk 00:01:35]} {[%emt 00:01:33]} 37. Rb1 {[%clk
00:24:24]} {[%emt 00:01:57]} Rd8 {[%clk 00:00:55]} {[%emt 00:01:11]} 38. a4
{[%clk 00:11:10]} {[%emt 00:13:44]} Ka8 {[%clk 00:00:54]} {[%emt 00:00:30]} 39.
Ra1 {[%clk 00:10:59]} {[%emt 00:00:41]} Rd2 {[%clk 00:00:52]} {[%emt 00:00:32]}
40. a5 {[%clk 00:10:42]} {[%emt 00:00:48]} Bxa5 {[%clk 00:00:34]} {[%emt
00:00:48]} 41. Rxa5 {[%clk 00:11:05]} {[%emt 00:00:07]} Rd1+ {[%clk 00:00:47]}
{[%emt 00:00:17]} 42. Kf2 {[%clk 00:10:14]} {[%emt 00:01:21]} Rxd3 {[%clk
00:00:58]} {[%emt 00:00:19]} 43. Rf6 {[%clk 00:09:42]} {[%emt 00:01:02]} Rb3
{[%clk 00:00:57]} {[%emt 00:00:31]} 44. Rf7 {[%clk 00:08:59]} {[%emt 00:01:14]}
Rb2+ {[%clk 00:01:23]} {[%emt 00:00:04]} 45. Ke1 {[%clk 00:08:15]} {[%emt
00:01:13]} Re8+ {[%clk 00:00:42]} {[%emt 00:01:12]} 46. Kd1 {[%clk 00:08:27]}
{[%emt 00:00:17]} Rb7 {[%clk 00:00:47]} {[%emt 00:00:25]} 47. Rxb7 {[%clk
00:08:53]} {[%emt 00:00:05]} Kxb7 {[%clk 00:01:14]} {[%emt 00:00:02]} 48. Rxg5
{[%clk 00:09:17]} {[%emt 00:00:05]} Rh8 {[%clk 00:01:02]} {[%emt 00:00:42]} 49.
Be5 {[%clk 00:09:33]} {[%emt 00:00:14]} Rh6 {[%clk 00:00:56]} {[%emt 00:00:36]}
50. Bg7 {[%clk 00:09:32]} {[%emt 00:00:31]} Rd6 {[%clk 00:00:56]} {[%emt
00:00:28]} 51. g3 {[%clk 00:08:56]} {[%emt 00:01:08]} Rd7 {[%clk 00:00:59]}
{[%emt 00:00:28]} 52. Kd2 {[%clk 00:09:02]} {[%emt 00:00:24]} a5 {[%clk
00:01:16]} {[%emt 00:00:12]} 53. Kd3 {[%clk 00:09:26]} {[%emt 00:00:06]} a4
{[%clk 00:01:15]} {[%emt 00:00:32]} 54. Bxd4 {[%clk 00:09:15]} {[%emt
00:00:41]} Ka6 {[%clk 00:00:49]} {[%emt 00:00:56]} 55. Kc4 {[%clk 00:07:11]}
{[%emt 00:02:34]} a3 {[%clk 00:00:41]} {[%emt 00:00:38]} 56. Rg6+ {[%clk
00:07:37]} {[%emt 00:00:04]} Kb7 {[%clk 00:00:55]} {[%emt 00:00:17]} 57. Rb6+
{[%clk 00:07:55]} {[%emt 00:00:12]} Kc7 {[%clk 00:01:14]} {[%emt 00:00:11]} 58.
Ra6 {[%clk 00:08:16]} {[%emt 00:00:08]} Kb8 {[%clk 00:00:51]} {[%emt 00:00:54]}
59. Rxa3 {[%clk 00:08:17]} {[%emt 00:00:29]} Rh7 {[%clk 00:01:00]} {[%emt
00:00:21]} 60. Bf6 {[%clk 00:06:29]} {[%emt 00:02:18]} 1-0